[Event "December 12 Late 2023"]
[Site "https://www.chess.com"]
[Date "2023.12.12"]
[Round "7"]
[White "Goryachkina, Aleksandra"]
[Black "Grutter, Tim"]
[Result "1/2-1/2"]
[Board "49"]
[TimeControl "180+1"]
[WhiteFideId "4147103"]
[BlackFideId "1057472"]
[WhiteElo "2663"]
[BlackElo "2535"]
[WhiteTeam "FID"]
[BlackTeam "NED"]
[WhiteClock "0:00:12"]
[BlackClock "0:00:10"]

1. e4 {[%clk 0:03:00]}  c6 {[%clk 0:02:56]} 2. d4 {[%clk 0:02:59]}  d5 {[%clk 0:02:56]} 3. exd5 {[%clk 0:02:59]}  cxd5 {[%clk 0:02:56]} 4. c4 {[%clk 0:03:00]}  Nf6 {[%clk 0:02:55]} 5. Nf3 {[%clk 0:03:00]}  g6 {[%clk 0:02:56]} 6. Nc3 {[%clk 0:02:59]}  Bg7 {[%clk 0:02:55]} 7. cxd5 {[%clk 0:02:55]}  O-O {[%clk 0:02:56]} 8. Qb3 {[%clk 0:02:32]}  Nbd7 {[%clk 0:02:55]} 9. Bc4 {[%clk 0:02:24]}  Nb6 {[%clk 0:02:42]} 10. O-O {[%clk 0:02:24]}  Bf5 {[%clk 0:02:30]} 11. Re1 {[%clk 0:02:16]}  Rc8 {[%clk 0:02:26]} 12. Bf1 {[%clk 0:02:14]}  Nfxd5 {[%clk 0:02:06]} 13. Nxd5 {[%clk 0:02:13]}  Qxd5 {[%clk 0:02:05]} 14. Rxe7 {[%clk 0:02:09]}  Be6 {[%clk 0:01:55]} 15. Qxd5 {[%clk 0:01:50]}  Bxd5 {[%clk 0:01:53]} 16. Re3 {[%clk 0:01:27]}  Bxf3 {[%clk 0:01:40]} 17. Rxf3 {[%clk 0:01:26]}  Bxd4 {[%clk 0:01:41]} 18. Bh6 {[%clk 0:01:16]}  Rfe8 {[%clk 0:01:30]} 19. Rd1 {[%clk 0:00:59]}  Bxb2 {[%clk 0:01:26]} 20. Rb3 {[%clk 0:00:49]}  Bg7 {[%clk 0:01:08]} 21. Be3 {[%clk 0:00:49]}  Re6 {[%clk 0:00:54]} 22. g3 {[%clk 0:00:48]}  Be5 {[%clk 0:00:33]} 23. Bh3 {[%clk 0:00:47]}  f5 {[%clk 0:00:33]} 24. Bg2 {[%clk 0:00:47]}  Rc7 {[%clk 0:00:24]} 25. a4 {[%clk 0:00:47]}  Rd6 {[%clk 0:00:20]} 26. Rxd6 {[%clk 0:00:40]}  Bxd6 {[%clk 0:00:21]} 27. a5 {[%clk 0:00:40]}  Nc4 {[%clk 0:00:15]} 28. Bxa7 {[%clk 0:00:39]}  Nxa5 {[%clk 0:00:14]} 29. Bd5+ {[%clk 0:00:30]}  Kf8 {[%clk 0:00:13]} 30. Rd3 {[%clk 0:00:27]}  Bc5 {[%clk 0:00:08]} 31. Bb8 {[%clk 0:00:14]}  Rd7 {[%clk 0:00:08]} 32. Rd1 {[%clk 0:00:09]}  Nc6 {[%clk 0:00:07]} 33. Bf4 {[%clk 0:00:09]}  Nb4 {[%clk 0:00:03]} 34. Bh6+ {[%clk 0:00:08]}  Ke8 {[%clk 0:00:03]} 35. Re1+ {[%clk 0:00:08]}  Re7 {[%clk 0:00:03]} 36. Rxe7+ {[%clk 0:00:07]}  Kxe7 {[%clk 0:00:02]} 37. Bxb7 {[%clk 0:00:08]}  Nd3 {[%clk 0:00:02]} 38. Be3 {[%clk 0:00:07]}  Bxe3 {[%clk 0:00:03]} 39. fxe3 {[%clk 0:00:07]}  Ne5 {[%clk 0:00:04]} 40. Kg2 {[%clk 0:00:08]}  Kf6 {[%clk 0:00:03]} 41. Bd5 {[%clk 0:00:07]}  Ng4 {[%clk 0:00:02]} 42. Bg8 {[%clk 0:00:05]}  Nxe3+ {[%clk 0:00:01]} 43. Kf3 {[%clk 0:00:05]}  Ng4 {[%clk 0:00:02]} 44. h3 {[%clk 0:00:06]}  Ne5+ {[%clk 0:00:02]} 45. Kg2 {[%clk 0:00:06]}  h6 {[%clk 0:00:02]} 46. Bd5 {[%clk 0:00:06]}  g5 {[%clk 0:00:02]} 47. Kf2 {[%clk 0:00:05]}  Ke7 {[%clk 0:00:03]} 48. Ke3 {[%clk 0:00:05]}  Kd6 {[%clk 0:00:03]} 49. Bb7 {[%clk 0:00:05]}  Ng6 {[%clk 0:00:03]} 50. Ba8 {[%clk 0:00:05]}  Ke5 {[%clk 0:00:04]} 51. Kf2 {[%clk 0:00:05]}  Ne7 {[%clk 0:00:03]} 52. Bb7 {[%clk 0:00:05]}  Nd5 {[%clk 0:00:03]} 53. Ba8 {[%clk 0:00:05]}  Nf6 {[%clk 0:00:03]} 54. Bb7 {[%clk 0:00:05]}  Ne4+ {[%clk 0:00:03]} 55. Kf3 {[%clk 0:00:06]}  Nd2+ {[%clk 0:00:03]} 56. Kf2 {[%clk 0:00:06]}  Nc4 {[%clk 0:00:03]} 57. Kf3 {[%clk 0:00:06]}  Nb2 {[%clk 0:00:04]} 58. Kf2 {[%clk 0:00:06]}  Nd3+ {[%clk 0:00:04]} 59. Kf3 {[%clk 0:00:06]}  Nc5 {[%clk 0:00:03]} 60. Bc6 {[%clk 0:00:06]}  Ne6 {[%clk 0:00:03]} 61. Bb7 {[%clk 0:00:06]}  h5 {[%clk 0:00:03]} 62. Ba8 {[%clk 0:00:04]}  Nd4+ {[%clk 0:00:02]} 63. Kf2 {[%clk 0:00:04]}  Ne6 {[%clk 0:00:02]} 64. Kf3 {[%clk 0:00:05]}  Nc7 {[%clk 0:00:02]} 65. Bb7 {[%clk 0:00:04]}  Nb5 {[%clk 0:00:03]} 66. Ba8 {[%clk 0:00:04]}  Nd6 {[%clk 0:00:03]} 67. Bc6 {[%clk 0:00:03]}  Kd4 {[%clk 0:00:03]} 68. Kf2 {[%clk 0:00:03]}  Ne4+ {[%clk 0:00:02]} 69. Kf3 {[%clk 0:00:03]}  Nd2+ {[%clk 0:00:03]} 70. Kf2 {[%clk 0:00:04]}  Nc4 {[%clk 0:00:04]} 71. Bb7 {[%clk 0:00:04]}  Ne5 {[%clk 0:00:04]} 72. Ba8 {[%clk 0:00:04]}  Kd3 {[%clk 0:00:03]} 73. Bb7 {[%clk 0:00:04]}  Kd2 {[%clk 0:00:03]} 74. Bc8 {[%clk 0:00:04]}  f4 {[%clk 0:00:02]} 75. gxf4 {[%clk 0:00:04]}  gxf4 {[%clk 0:00:03]} 76. Bf5 {[%clk 0:00:05]}  h4 {[%clk 0:00:02]} 77. Be6 {[%clk 0:00:04]}  Kc3 {[%clk 0:00:03]} 78. Bf5 {[%clk 0:00:05]}  Kd4 {[%clk 0:00:03]} 79. Bc8 {[%clk 0:00:05]}  Nd3+ {[%clk 0:00:02]} 80. Kf3 {[%clk 0:00:05]}  Ke5 {[%clk 0:00:02]} 81. Bb7 {[%clk 0:00:04]}  Ne1+ {[%clk 0:00:02]} 82. Kg4 {[%clk 0:00:04]}  Ng2 {[%clk 0:00:01]} 83. Bxg2 {[%clk 0:00:04]}  Kf6 {[%clk 0:00:02]} 84. Kxf4 {[%clk 0:00:04]}  Kg7 {[%clk 0:00:02]} 85. Kg4 {[%clk 0:00:05]}  Kh8 {[%clk 0:00:03]} 86. Kxh4 {[%clk 0:00:06]}  Kg8 {[%clk 0:00:03]} 87. Kg4 {[%clk 0:00:07]}  Kh8 {[%clk 0:00:04]} 88. h4 {[%clk 0:00:08]}  Kg8 {[%clk 0:00:05]} 89. h5 {[%clk 0:00:08]}  Kh8 {[%clk 0:00:06]} 90. Kg5 {[%clk 0:00:09]}  Kg8 {[%clk 0:00:07]} 91. h6 {[%clk 0:00:10]}  Kh8 {[%clk 0:00:08]} 92. Kg6 {[%clk 0:00:11]}  Kg8 {[%clk 0:00:09]} 93. Bf3 {[%clk 0:00:11]}  Kh8 {[%clk 0:00:10]} 94. Bd5 {[%clk 0:00:12]} 1/2-1/2

[Event "December 12 Late 2023"]
[Site "https://www.chess.com"]
[Date "2023.12.12"]
[Round "7"]
[White "Kleiman, Jake"]
[Black "Ismayil, Malak"]
[Result "1-0"]
[Board "51"]
[TimeControl "180+1"]
[WhiteFideId "2020041"]
[BlackFideId "13412604"]
[WhiteElo "2630"]
[BlackElo "2521"]
[WhiteTeam "USA"]
[BlackTeam "AZE"]
[WhiteClock "0:01:04"]
[BlackClock "0:00:21"]

1. e4 {[%clk 0:03:00]}  e5 {[%clk 0:02:57]} 2. Nf3 {[%clk 0:02:59]}  Nc6 {[%clk 0:02:57]} 3. Bc4 {[%clk 0:03:00]}  Bc5 {[%clk 0:02:56]} 4. d3 {[%clk 0:03:01]}  Nf6 {[%clk 0:02:57]} 5. c3 {[%clk 0:03:01]}  O-O {[%clk 0:02:57]} 6. Bb3 {[%clk 0:03:02]}  h6 {[%clk 0:02:57]} 7. O-O {[%clk 0:03:02]}  d6 {[%clk 0:02:57]} 8. Nbd2 {[%clk 0:03:01]}  Re8 {[%clk 0:02:50]} 9. h3 {[%clk 0:03:01]}  d5 {[%clk 0:02:45]} 10. exd5 {[%clk 0:02:28]}  Nxd5 {[%clk 0:02:46]} 11. Re1 {[%clk 0:02:28]}  Nf4 {[%clk 0:02:24]} 12. d4 {[%clk 0:02:27]}  Bd6 {[%clk 0:01:29]} 13. Ne4 {[%clk 0:02:12]}  Ng6 {[%clk 0:01:10]} 14. Nxd6 {[%clk 0:02:00]}  Qxd6 {[%clk 0:01:11]} 15. dxe5 {[%clk 0:01:52]}  Qxd1 {[%clk 0:01:06]} 16. Rxd1 {[%clk 0:01:51]}  Ncxe5 {[%clk 0:01:05]} 17. Nxe5 {[%clk 0:01:52]}  Nxe5 {[%clk 0:01:05]} 18. Bf4 {[%clk 0:01:50]}  Bf5 {[%clk 0:01:00]} 19. Rd2 {[%clk 0:01:44]}  c6 {[%clk 0:00:53]} 20. Rad1 {[%clk 0:01:42]}  Ng6 {[%clk 0:00:48]} 21. Be3 {[%clk 0:01:40]}  h5 {[%clk 0:00:47]} 22. Kf1 {[%clk 0:01:24]}  Re7 {[%clk 0:00:47]} 23. Rd8+ {[%clk 0:01:19]}  Rxd8 {[%clk 0:00:47]} 24. Rxd8+ {[%clk 0:01:19]}  Kh7 {[%clk 0:00:48]} 25. Bxa7 {[%clk 0:01:16]}  Nf4 {[%clk 0:00:41]} 26. Be3 {[%clk 0:01:12]}  Nd3 {[%clk 0:00:30]} 27. Bc2 {[%clk 0:01:07]}  Nxb2 {[%clk 0:00:22]} 28. Bxf5+ {[%clk 0:01:07]}  g6 {[%clk 0:00:21]} 29. Bd4 {[%clk 0:01:04]} 1-0

[Event "December 12 Late 2023"]
[Site "https://www.chess.com"]
[Date "2023.12.12"]
[Round "7"]
[White "Marin Posada, Sebastian"]
[Black "Kokoszczynski, Jan"]
[Result "1-0"]
[Board "52"]
[TimeControl "180+1"]
[WhiteFideId "4402782"]
[BlackFideId "1174460"]
[WhiteElo "2460"]
[BlackElo "2627"]
[WhiteTeam "COL"]
[BlackTeam "POL"]
[WhiteClock "0:00:12"]
[BlackClock "0:00:00"]

1. d4 {[%clk 0:03:00]}  Nf6 {[%clk 0:02:55]} 2. c4 {[%clk 0:02:59]}  g6 {[%clk 0:02:55]} 3. g3 {[%clk 0:02:59]}  Bg7 {[%clk 0:02:55]} 4. Bg2 {[%clk 0:02:59]}  O-O {[%clk 0:02:55]} 5. e4 {[%clk 0:02:53]}  d6 {[%clk 0:02:55]} 6. Nc3 {[%clk 0:02:51]}  e5 {[%clk 0:02:53]} 7. Nge2 {[%clk 0:02:50]}  Nbd7 {[%clk 0:02:48]} 8. O-O {[%clk 0:02:49]}  c6 {[%clk 0:02:38]} 9. h3 {[%clk 0:02:47]}  Re8 {[%clk 0:02:34]} 10. Bg5 {[%clk 0:02:37]}  h6 {[%clk 0:02:33]} 11. Be3 {[%clk 0:02:36]}  Kh7 {[%clk 0:02:29]} 12. f4 {[%clk 0:02:20]}  Qe7 {[%clk 0:02:23]} 13. dxe5 {[%clk 0:02:12]}  dxe5 {[%clk 0:02:23]} 14. f5 {[%clk 0:02:13]}  a5 {[%clk 0:02:14]} 15. g4 {[%clk 0:02:09]}  Nc5 {[%clk 0:02:08]} 16. Qc2 {[%clk 0:01:57]}  b6 {[%clk 0:02:01]} 17. Rad1 {[%clk 0:01:55]}  Ba6 {[%clk 0:02:00]} 18. b3 {[%clk 0:01:54]}  Rad8 {[%clk 0:02:00]} 19. Kh2 {[%clk 0:01:50]}  Nfd7 {[%clk 0:02:00]} 20. Rd2 {[%clk 0:01:41]}  Bf6 {[%clk 0:01:58]} 21. Rfd1 {[%clk 0:01:32]}  Bg5 {[%clk 0:01:57]} 22. Bxg5 {[%clk 0:01:26]}  Qxg5 {[%clk 0:01:58]} 23. Na4 {[%clk 0:01:15]}  Kg7 {[%clk 0:01:34]} 24. Ng3 {[%clk 0:01:08]}  Nxa4 {[%clk 0:01:20]} 25. Rxd7 {[%clk 0:01:07]}  Nc5 {[%clk 0:01:20]} 26. R7d6 {[%clk 0:01:01]}  Rc8 {[%clk 0:00:24]} 27. Qc3 {[%clk 0:01:00]}  b5 {[%clk 0:00:21]} 28. Bf1 {[%clk 0:00:53]}  b4 {[%clk 0:00:21]} 29. Qf3 {[%clk 0:00:47]}  Qf4 {[%clk 0:00:19]} 30. Bg2 {[%clk 0:00:37]}  Qxf3 {[%clk 0:00:09]} 31. Bxf3 {[%clk 0:00:38]}  a4 {[%clk 0:00:10]} 32. Rb1 {[%clk 0:00:21]}  Red8 {[%clk 0:00:08]} 33. Rxd8 {[%clk 0:00:18]}  Rxd8 {[%clk 0:00:09]} 34. bxa4 {[%clk 0:00:17]}  Rb8 {[%clk 0:00:08]} 35. Bd1 {[%clk 0:00:13]}  Nd7 {[%clk 0:00:03]} 36. Bb3 {[%clk 0:00:12]}  Nf6 {[%clk 0:00:02]} 37. Rd1 {[%clk 0:00:12]}  Kf8 {[%clk 0:00:01]} 38. Rd6 {[%clk 0:00:12]}  Ke7 {[%clk 0:00:00]} 39. Rxc6 {[%clk 0:00:12]} 1-0

[Event "December 12 Late 2023"]
[Site "https://www.chess.com"]
[Date "2023.12.12"]
[Round "7"]
[White "Riehle, Marco"]
[Black "Rodriguez Fontecha, Marcos"]
[Result "1-0"]
[Board "54"]
[TimeControl "180+1"]
[WhiteFideId "12904392"]
[BlackFideId "2256576"]
[WhiteElo "2836"]
[BlackElo "2497"]
[WhiteTeam "GER"]
[BlackTeam "ESP"]
[WhiteClock "0:02:19"]
[BlackClock "0:00:08"]

1. e4 {[%clk 0:03:00]}  e6 {[%clk 0:02:59]} 2. c4 {[%clk 0:03:00]}  d5 {[%clk 0:02:59]} 3. cxd5 {[%clk 0:03:01]}  exd5 {[%clk 0:03:00]} 4. Qb3 {[%clk 0:03:01]}  c6 {[%clk 0:02:55]} 5. e5 {[%clk 0:03:01]}  Qb6 {[%clk 0:02:51]} 6. f4 {[%clk 0:03:00]}  Qxb3 {[%clk 0:02:49]} 7. axb3 {[%clk 0:03:01]}  Ne7 {[%clk 0:02:47]} 8. d4 {[%clk 0:03:00]}  Nf5 {[%clk 0:02:46]} 9. Nf3 {[%clk 0:03:00]}  h5 {[%clk 0:02:44]} 10. Nc3 {[%clk 0:02:59]}  Be7 {[%clk 0:02:42]} 11. Bd3 {[%clk 0:02:59]}  g6 {[%clk 0:02:40]} 12. Kf2 {[%clk 0:02:58]}  Be6 {[%clk 0:02:39]} 13. g3 {[%clk 0:02:58]}  Nd7 {[%clk 0:02:38]} 14. h3 {[%clk 0:02:58]}  c5 {[%clk 0:02:34]} 15. Nb5 {[%clk 0:02:57]}  O-O {[%clk 0:02:25]} 16. g4 {[%clk 0:02:54]}  Ng7 {[%clk 0:02:03]} 17. Kg3 {[%clk 0:02:52]}  a6 {[%clk 0:01:56]} 18. Nc3 {[%clk 0:02:50]}  Rac8 {[%clk 0:01:34]} 19. Be3 {[%clk 0:02:48]}  cxd4 {[%clk 0:01:18]} 20. Nxd4 {[%clk 0:02:46]}  h4+ {[%clk 0:01:16]} 21. Kf3 {[%clk 0:02:45]}  Nc5 {[%clk 0:01:15]} 22. Bc2 {[%clk 0:02:44]}  f5 {[%clk 0:01:06]} 23. Nxe6 {[%clk 0:02:40]}  Ncxe6 {[%clk 0:00:54]} 24. Nxd5 {[%clk 0:02:40]}  Rxc2 {[%clk 0:00:52]} 25. Nxe7+ {[%clk 0:02:39]}  Kf7 {[%clk 0:00:50]} 26. Nd5 {[%clk 0:02:39]}  Rd8 {[%clk 0:00:40]} 27. Rhd1 {[%clk 0:02:37]}  Rh2 {[%clk 0:00:38]} 28. Nf6 {[%clk 0:02:34]}  Rxh3+ {[%clk 0:00:37]} 29. Kf2 {[%clk 0:02:34]}  fxg4 {[%clk 0:00:28]} 30. Rxd8 {[%clk 0:02:32]}  Nxd8 {[%clk 0:00:29]} 31. Rd1 {[%clk 0:02:32]}  Nge6 {[%clk 0:00:28]} 32. Rd7+ {[%clk 0:02:31]}  Kf8 {[%clk 0:00:28]} 33. f5 {[%clk 0:02:30]}  Rf3+ {[%clk 0:00:24]} 34. Ke2 {[%clk 0:02:30]}  Rxe3+ {[%clk 0:00:18]} 35. Kxe3 {[%clk 0:02:31]}  gxf5 {[%clk 0:00:19]} 36. Nh7+ {[%clk 0:02:31]}  Kg8 {[%clk 0:00:17]} 37. Nf6+ {[%clk 0:02:32]}  Kf8 {[%clk 0:00:17]} 38. Rh7 {[%clk 0:02:33]}  f4+ {[%clk 0:00:17]} 39. Kd3 {[%clk 0:02:31]}  Nf7 {[%clk 0:00:17]} 40. Nxg4 {[%clk 0:02:28]}  f3 {[%clk 0:00:13]} 41. Rxh4 {[%clk 0:02:27]}  f2 {[%clk 0:00:13]} 42. Ke2 {[%clk 0:02:26]}  Nf4+ {[%clk 0:00:11]} 43. Kxf2 {[%clk 0:02:26]}  Nd3+ {[%clk 0:00:11]} 44. Ke3 {[%clk 0:02:26]}  Ndxe5 {[%clk 0:00:11]} 45. Nxe5 {[%clk 0:02:24]}  Nxe5 {[%clk 0:00:12]} 46. Rh8+ {[%clk 0:02:24]}  Ke7 {[%clk 0:00:12]} 47. Rh7+ {[%clk 0:02:24]}  Nf7 {[%clk 0:00:12]} 48. Kd4 {[%clk 0:02:25]}  Ke6 {[%clk 0:00:13]} 49. Kc5 {[%clk 0:02:20]}  Nd6 {[%clk 0:00:08]} 50. Rh6+ {[%clk 0:02:19]} 1-0

[Event "December 12 Late 2023"]
[Site "https://www.chess.com"]
[Date "2023.12.12"]
[Round "7"]
[White "Petukhov, Dmitry"]
[Black "Piesik, Piotr"]
[Result "0-1"]
[Board "57"]
[TimeControl "180+1"]
[WhiteFideId "4142748"]
[BlackFideId "1136194"]
[WhiteElo "2513"]
[BlackElo "2652"]
[WhiteTeam "RUS"]
[BlackTeam "CZE"]
[WhiteClock "0:00:17"]
[BlackClock "0:00:40"]

1. e4 {[%clk 0:03:00]}  g6 {[%clk 0:02:58]} 2. d4 {[%clk 0:02:59]}  Bg7 {[%clk 0:02:59]} 3. Nc3 {[%clk 0:02:55]}  c6 {[%clk 0:02:59]} 4. f4 {[%clk 0:02:50]}  d5 {[%clk 0:02:59]} 5. e5 {[%clk 0:02:50]}  Nh6 {[%clk 0:02:59]} 6. Nce2 {[%clk 0:02:47]}  Nf5 {[%clk 0:02:51]} 7. Ng3 {[%clk 0:02:45]}  h5 {[%clk 0:02:49]} 8. Nf3 {[%clk 0:02:41]}  h4 {[%clk 0:02:47]} 9. Nxf5 {[%clk 0:02:41]}  Bxf5 {[%clk 0:02:48]} 10. Bd3 {[%clk 0:02:35]}  Bxd3 {[%clk 0:02:47]} 11. Qxd3 {[%clk 0:02:36]}  e6 {[%clk 0:02:48]} 12. b3 {[%clk 0:02:33]}  Bf8 {[%clk 0:02:48]} 13. O-O {[%clk 0:02:33]}  Qb6 {[%clk 0:02:44]} 14. a4 {[%clk 0:02:31]}  a5 {[%clk 0:02:41]} 15. Ba3 {[%clk 0:02:30]}  Bxa3 {[%clk 0:02:39]} 16. Rxa3 {[%clk 0:02:31]}  c5 {[%clk 0:02:39]} 17. c4 {[%clk 0:02:25]}  Nc6 {[%clk 0:02:32]} 18. cxd5 {[%clk 0:02:14]}  exd5 {[%clk 0:02:29]} 19. f5 {[%clk 0:02:13]}  Nb4 {[%clk 0:02:08]} 20. Qe2 {[%clk 0:01:58]}  cxd4 {[%clk 0:02:06]} 21. Kh1 {[%clk 0:01:53]}  d3 {[%clk 0:02:05]} 22. Qd2 {[%clk 0:01:50]}  gxf5 {[%clk 0:02:05]} 23. Ng5 {[%clk 0:01:43]}  h3 {[%clk 0:01:56]} 24. Nxh3 {[%clk 0:01:42]}  O-O-O {[%clk 0:01:55]} 25. Nf4 {[%clk 0:01:40]}  Qd4 {[%clk 0:01:45]} 26. Raa1 {[%clk 0:01:34]}  Qxe5 {[%clk 0:01:28]} 27. h3 {[%clk 0:01:27]}  Qe4 {[%clk 0:01:07]} 28. Rae1 {[%clk 0:01:15]}  Qd4 {[%clk 0:01:07]} 29. Re7 {[%clk 0:01:15]}  Rhe8 {[%clk 0:00:51]} 30. Rxf7 {[%clk 0:01:08]}  Kb8 {[%clk 0:00:49]} 31. Rc1 {[%clk 0:01:00]}  Rc8 {[%clk 0:00:44]} 32. Rd1 {[%clk 0:00:36]}  Rc2 {[%clk 0:00:40]} 33. Qxc2 {[%clk 0:00:17]} 0-1

[Event "December 12 Late 2023"]
[Site "https://www.chess.com"]
[Date "2023.12.12"]
[Round "7"]
[White "Lin, Bryan Enming"]
[Black "Mendes Aaron Reeve"]
[Result "1-0"]
[Board "59"]
[TimeControl "180+1"]
[WhiteFideId "30987121"]
[BlackFideId "25954938"]
[WhiteElo "2505"]
[BlackElo "2633"]
[WhiteTeam "USA"]
[BlackTeam "CAN"]
[WhiteClock "0:00:48"]
[BlackClock "0:00:11"]

1. e4 {[%clk 0:03:00]}  c5 {[%clk 0:02:59]} 2. Nf3 {[%clk 0:03:01]}  d6 {[%clk 0:02:59]} 3. d4 {[%clk 0:03:01]}  cxd4 {[%clk 0:02:53]} 4. Nxd4 {[%clk 0:03:02]}  Nf6 {[%clk 0:02:51]} 5. Nc3 {[%clk 0:03:02]}  a6 {[%clk 0:02:50]} 6. h3 {[%clk 0:03:02]}  e5 {[%clk 0:02:49]} 7. Nde2 {[%clk 0:03:02]}  Be6 {[%clk 0:02:49]} 8. Bg5 {[%clk 0:03:02]}  Be7 {[%clk 0:02:49]} 9. Ng3 {[%clk 0:02:52]}  Nbd7 {[%clk 0:02:48]} 10. Nf5 {[%clk 0:02:50]}  Bxf5 {[%clk 0:02:45]} 11. exf5 {[%clk 0:02:51]}  Qa5 {[%clk 0:02:42]} 12. Bc4 {[%clk 0:02:37]}  Rc8 {[%clk 0:02:39]} 13. Bb3 {[%clk 0:02:37]}  d5 {[%clk 0:02:14]} 14. O-O {[%clk 0:02:16]}  O-O {[%clk 0:01:51]} 15. Bxf6 {[%clk 0:01:59]}  Nxf6 {[%clk 0:01:50]} 16. Nxd5 {[%clk 0:02:00]}  Nxd5 {[%clk 0:01:49]} 17. Qxd5 {[%clk 0:01:54]}  Qxd5 {[%clk 0:01:47]} 18. Bxd5 {[%clk 0:01:55]}  Rxc2 {[%clk 0:01:44]} 19. Bxb7 {[%clk 0:01:54]}  a5 {[%clk 0:01:36]} 20. b3 {[%clk 0:01:53]}  Bc5 {[%clk 0:01:31]} 21. Be4 {[%clk 0:01:49]}  Rb2 {[%clk 0:01:30]} 22. Rac1 {[%clk 0:01:47]}  Bd4 {[%clk 0:01:26]} 23. Rc2 {[%clk 0:01:46]}  Rxc2 {[%clk 0:01:24]} 24. Bxc2 {[%clk 0:01:47]}  Rc8 {[%clk 0:01:23]} 25. Be4 {[%clk 0:01:47]}  Kf8 {[%clk 0:01:22]} 26. Rb1 {[%clk 0:01:46]}  Ke7 {[%clk 0:01:18]} 27. Kf1 {[%clk 0:01:44]}  Kd6 {[%clk 0:01:14]} 28. Ke2 {[%clk 0:01:40]}  Rc3 {[%clk 0:01:12]} 29. f3 {[%clk 0:01:39]}  Kc5 {[%clk 0:01:05]} 30. a3 {[%clk 0:01:37]}  a4 {[%clk 0:00:43]} 31. bxa4 {[%clk 0:01:36]}  Rxa3 {[%clk 0:00:42]} 32. Rb5+ {[%clk 0:01:36]}  Kc4 {[%clk 0:00:42]} 33. Bd5+ {[%clk 0:01:25]}  Kc3 {[%clk 0:00:41]} 34. Bxf7 {[%clk 0:01:10]}  Rxa4 {[%clk 0:00:39]} 35. Rb7 {[%clk 0:01:10]}  Ra6 {[%clk 0:00:24]} 36. Rc7+ {[%clk 0:01:09]}  Kb2 {[%clk 0:00:23]} 37. Be6 {[%clk 0:01:08]}  g6 {[%clk 0:00:19]} 38. Rxh7 {[%clk 0:01:06]}  gxf5 {[%clk 0:00:19]} 39. Bxf5 {[%clk 0:01:07]}  Ra2 {[%clk 0:00:18]} 40. Be6 {[%clk 0:01:01]}  Ra1 {[%clk 0:00:16]} 41. Rb7+ {[%clk 0:01:01]}  Kc2 {[%clk 0:00:16]} 42. Rc7+ {[%clk 0:01:01]}  Kb2 {[%clk 0:00:16]} 43. h4 {[%clk 0:00:57]}  Rh1 {[%clk 0:00:16]} 44. Rh7 {[%clk 0:00:53]}  Rh2 {[%clk 0:00:15]} 45. Bh3 {[%clk 0:00:52]}  Rh1 {[%clk 0:00:14]} 46. h5 {[%clk 0:00:53]}  Rc1 {[%clk 0:00:14]} 47. Rb7+ {[%clk 0:00:51]}  Ka3 {[%clk 0:00:13]} 48. h6 {[%clk 0:00:51]}  Rc2+ {[%clk 0:00:10]} 49. Kd3 {[%clk 0:00:51]}  Rc3+ {[%clk 0:00:10]} 50. Ke4 {[%clk 0:00:51]}  Re3+ {[%clk 0:00:09]} 51. Kd5 {[%clk 0:00:52]}  Bc3 {[%clk 0:00:08]} 52. Rc7 {[%clk 0:00:50]}  e4 {[%clk 0:00:07]} 53. Rxc3+ {[%clk 0:00:45]}  Rxc3 {[%clk 0:00:07]} 54. h7 {[%clk 0:00:45]}  exf3 {[%clk 0:00:06]} 55. h8=Q {[%clk 0:00:46]}  Kb3 {[%clk 0:00:06]} 56. gxf3 {[%clk 0:00:45]}  Rd3+ {[%clk 0:00:06]} 57. Ke4 {[%clk 0:00:45]}  Kc2 {[%clk 0:00:07]} 58. Qc8+ {[%clk 0:00:43]}  Rc3 {[%clk 0:00:08]} 59. Qg4 {[%clk 0:00:43]}  Kd2 {[%clk 0:00:08]} 60. Qg2+ {[%clk 0:00:43]}  Kc1 {[%clk 0:00:07]} 61. f4 {[%clk 0:00:43]}  Rc2 {[%clk 0:00:07]} 62. Qxc2+ {[%clk 0:00:43]}  Kxc2 {[%clk 0:00:08]} 63. f5 {[%clk 0:00:44]}  Kb2 {[%clk 0:00:08]} 64. f6 {[%clk 0:00:45]}  Ka1 {[%clk 0:00:09]} 65. f7 {[%clk 0:00:46]}  Kb2 {[%clk 0:00:09]} 66. f8=Q {[%clk 0:00:47]}  Ka1 {[%clk 0:00:10]} 67. Qb4 {[%clk 0:00:45]}  Ka2 {[%clk 0:00:10]} 68. Kd3 {[%clk 0:00:46]}  Ka1 {[%clk 0:00:10]} 69. Kc2 {[%clk 0:00:47]}  Ka2 {[%clk 0:00:11]} 70. Qb2# {[%clk 0:00:48]} 1-0

[Event "December 12 Late 2023"]
[Site "https://www.chess.com"]
[Date "2023.12.12"]
[Round "7"]
[White "Makaraci, Tunahan"]
[Black "Vlassov, Nikolai"]
[Result "1-0"]
[Board "60"]
[TimeControl "180+1"]
[WhiteFideId "6356559"]
[BlackFideId "4103360"]
[WhiteElo "2504"]
[BlackElo "2618"]
[WhiteTeam "TUR"]
[BlackTeam "FID"]
[WhiteClock "0:00:05"]
[BlackClock "0:00:00"]

1. e4 {[%clk 0:03:00]}  Nc6 {[%clk 0:02:59]} 2. Nc3 {[%clk 0:02:59]}  Nf6 {[%clk 0:02:59]} 3. f4 {[%clk 0:02:50]}  d5 {[%clk 0:02:59]} 4. e5 {[%clk 0:02:51]}  d4 {[%clk 0:02:58]} 5. exf6 {[%clk 0:02:47]}  dxc3 {[%clk 0:02:58]} 6. fxg7 {[%clk 0:02:44]}  cxd2+ {[%clk 0:02:57]} 7. Qxd2 {[%clk 0:02:44]}  Bxg7 {[%clk 0:02:58]} 8. Qxd8+ {[%clk 0:02:44]}  Nxd8 {[%clk 0:02:58]} 9. Nf3 {[%clk 0:02:44]}  Bg4 {[%clk 0:02:56]} 10. Be2 {[%clk 0:02:43]}  Ne6 {[%clk 0:02:55]} 11. c3 {[%clk 0:02:42]}  O-O-O {[%clk 0:02:55]} 12. Be3 {[%clk 0:02:41]}  h5 {[%clk 0:02:29]} 13. Kf2 {[%clk 0:02:39]}  h4 {[%clk 0:02:25]} 14. Rad1 {[%clk 0:02:34]}  Bxf3 {[%clk 0:02:23]} 15. Bxf3 {[%clk 0:02:32]}  Bh6 {[%clk 0:02:23]} 16. Bg4 {[%clk 0:02:27]}  Kb8 {[%clk 0:02:18]} 17. Bxe6 {[%clk 0:02:27]}  fxe6 {[%clk 0:02:18]} 18. Ke2 {[%clk 0:02:22]}  Kc8 {[%clk 0:02:13]} 19. Rxd8+ {[%clk 0:02:21]}  Kxd8 {[%clk 0:02:08]} 20. Rd1+ {[%clk 0:02:19]}  Ke8 {[%clk 0:02:09]} 21. Kf3 {[%clk 0:02:16]}  Rg8 {[%clk 0:02:07]} 22. g4 {[%clk 0:02:09]}  hxg3 {[%clk 0:02:07]} 23. hxg3 {[%clk 0:02:09]}  e5 {[%clk 0:02:06]} 24. Bxa7 {[%clk 0:01:25]}  exf4 {[%clk 0:02:00]} 25. gxf4 {[%clk 0:01:24]}  b6 {[%clk 0:01:59]} 26. a4 {[%clk 0:01:24]}  Rf8 {[%clk 0:01:55]} 27. Rd4 {[%clk 0:01:19]}  e5 {[%clk 0:01:55]} 28. Re4 {[%clk 0:01:19]}  Bxf4 {[%clk 0:01:50]} 29. Ke2 {[%clk 0:01:17]}  Kd7 {[%clk 0:01:49]} 30. a5 {[%clk 0:01:16]}  Kc6 {[%clk 0:01:48]} 31. axb6 {[%clk 0:01:01]}  Kb7 {[%clk 0:01:21]} 32. Rb4 {[%clk 0:00:55]}  c5 {[%clk 0:01:05]} 33. Re4 {[%clk 0:00:49]}  Rh8 {[%clk 0:01:01]} 34. Kd3 {[%clk 0:00:48]}  Kc6 {[%clk 0:00:52]} 35. b4 {[%clk 0:00:45]}  Rh3+ {[%clk 0:00:47]} 36. Kc4 {[%clk 0:00:44]}  Bd2 {[%clk 0:00:44]} 37. b5+ {[%clk 0:00:40]}  Kb7 {[%clk 0:00:42]} 38. Kxc5 {[%clk 0:00:33]}  Bxc3 {[%clk 0:00:40]} 39. Rg4 {[%clk 0:00:32]}  Bd4+ {[%clk 0:00:36]} 40. Kd5 {[%clk 0:00:31]}  Rh7 {[%clk 0:00:35]} 41. Rg8 {[%clk 0:00:30]}  Bxb6 {[%clk 0:00:25]} 42. Bb8 {[%clk 0:00:13]}  Bd4 {[%clk 0:00:20]} 43. Bd6 {[%clk 0:00:12]}  Rh5 {[%clk 0:00:16]} 44. Rb8+ {[%clk 0:00:12]}  Ka7 {[%clk 0:00:17]} 45. Kc6 {[%clk 0:00:09]}  Rh6 {[%clk 0:00:16]} 46. Rb7+ {[%clk 0:00:09]}  Ka8 {[%clk 0:00:16]} 47. Re7 {[%clk 0:00:07]}  Rh8 {[%clk 0:00:13]} 48. b6 {[%clk 0:00:05]}  Bxb6 {[%clk 0:00:00]} 49. Kxb6 {[%clk 0:00:05]} 1-0